Workbook

Sheet ORÇAMENTO
A1: <---- NUMERAR SERVIÇOS PARA CPU | C1: Ministério do Desenvolvimento Regional
C2: Companhia de Desenvolvimento dos Vales do São Francisco e do Parnaíba
C3: 1ª Superintendência Regional
B5: OBRA: | C5: PAVIMENTAÇÃO ASFÁLTICA EM CBUQ - DIVERSAS RUAS (MONTES CLAROS / MG)
B6: DATA: | C6: OUTUBRO / 2.021 | G6: BDI Serviços: | I6: ='BDI SERV'!D31/100 -> 0.2292
B7: PRAZO DE EXECUÇÃO: 240 DIAS | G7: BDI Serviços: | I7: ='BDI FORN'!D31/100 -> 0.15
B8: ITEM | C8: DISCRIMINAÇÃO | D8: REFER. | E8: UNID. | F8: QUANT. | G8: P. UNITÁRIO | H8: P.UNIT.C/ BDI | I8: P. TOTAL | J8: =I37 -> 9688537.65 | K8: =500000*0.955 -> 477500
A9: A | B9: 1 | C9: SERVIÇOS PRELIMINARES | I9: =SUM(I10:I14) -> 418618.29 | J9: =I9/$I$37 -> 0.04320758252
A10: 1 | B10: 1.1 | C10: MOBILIZAÇÃO E DESMOBILIZAÇÃO | D10: CPU.1 | E10: GL | F10: 1 | G10: =VLOOKUP(A10,CPU!$A$1:$N$4656,9) -> 5053.76 | H10: =VLOOKUP(A10,CPU!$A$1:$N$4656,10) -> 6212.08 | I10: =ROUND(F10*H10,2) -> 6212.08 | J10: =I10/$I$37 -> 0.0006411782897
A11: 2 | B11: 1.2 | C11: ADMINISTRAÇÃO LOCAL | D11: CPU.2 | E11: GL | F11: 1 | G11: =VLOOKUP(A11,CPU!$A$1:$N$4656,9) -> 259895.2 | H11: =VLOOKUP(A11,CPU!$A$1:$N$4656,10) -> 319463.18 | I11: =ROUND(F11*H11,2) -> 319463.18 | J11: 0.03297331254
A12: 3 | B12: 1.3 | C12: CANTEIRO DE OBRAS | D12: CPU.3 | E12: GL | F12: 1 | G12: =VLOOKUP(A12,CPU!$A$1:$N$4656,9) -> 50391.15 | H12: =VLOOKUP(A12,CPU!$A$1:$N$4656,10) -> 61940.8 | I12: =ROUND(F12*H12,2) -> 61940.8 | J12: 0.006393204242
A13: 4 | B13: 1.4 | C13: PLACA DE OBRA EM CHAPA DE AÇO GALVANIZADO | D13: 74209/001 | E13: M2 | F13: 36 | G13: =VLOOKUP(A13,CPU!$A$1:$N$4656,9) -> 551.75 | H13: =VLOOKUP(A13,CPU!$A$1:$N$4656,10) -> 678.21 | I13: =ROUND(F13*H13,2) -> 24415.56 | J13: 0.002520045943
A14: 5 | B14: 1.5 | C14: LOCAÇÃO DE PAVIMENTAÇÃO | D14: 99064 | E14: M | F14: 9277 | G14: =VLOOKUP(A14,CPU!$A$1:$N$4656,9) -> 0.58 | H14: =VLOOKUP(A14,CPU!$A$1:$N$4656,10) -> 0.71 | I14: =ROUND(F14*H14,2) -> 6586.67 | J14: 0.0006798415032
A15: B | B15: 2 | C15: PAVIMENTAÇÃO | I15: =SUM(I16:I22) -> 2390754 | J15: 0.2467610785
A16: 6 | B16: 2.1 | C16: ESCAVAÇÃO HORIZONTAL EM SOLO DE 1A CATEGORIA | D16: 101116 | E16: M3 | F16: 20070 | G16: =VLOOKUP(A16,CPU!$A$1:$N$4656,9) -> 1.63 | H16: =VLOOKUP(A16,CPU!$A$1:$N$4656,10) -> 2 | I16: =ROUND(F16*H16,2) -> 40140 | J16: 0.004143040101
A17: 7 | B17: 2.2 | C17: CARGA, MANOBRA E DESCARGA DE SOLOS E MATERIAIS GRANULARES EM CAMINHÃO BASCULANTE | D17: 100976 | E17: M3 | F17: 20070 | G17: =VLOOKUP(A17,CPU!$A$1:$N$4656,9) -> 6.41 | H17: =VLOOKUP(A17,CPU!$A$1:$N$4656,10) -> 7.88 | I17: =ROUND(F17*H17,2) -> 158151.6 | J17: 0.016323578
A18: 8 | B18: 2.3 | C18: REGULARIZAÇÃO DO SUBLEITO | D18: 4011209a | E18: M2 | F18: 66900 | G18: =VLOOKUP(A18,CPU!$A$1:$N$4656,9) -> 0.7492 | H18: =VLOOKUP(A18,CPU!$A$1:$N$4656,10) -> 0.92 | I18: 61548 | J18: 0.006352661488
A19: 9 | B19: 2.4 | C19: EXECUÇÃO E COMPACTAÇÃO DE BASE E OU SUB BASE PARA PAVIMENTAÇÃO DE BRITA GRADUADA SIMPLES - EXCLUSIVE TRANSPORTE | D19: 96396 | E19: M3 | F19: 9620 | G19: =VLOOKUP(A19,CPU!$A$1:$N$4656,9) -> 146.08 | H19: =VLOOKUP(A19,CPU!$A$1:$N$4656,10) -> 179.56 | I19: 1727367.2 | J19: 0.1782897752
A20: 10 | B20: 2.5 | C20: IMPRIMAÇÃO COM ASFALTO DILUIDO CM-30 | D20: 96401 | E20: M2 | F20: 64120 | G20: =VLOOKUP(A20,CPU!$A$1:$N$4656,9) -> 0.99 | H20: =VLOOKUP(A20,CPU!$A$1:$N$4656,10) -> 1.22 | I20: 78226.4 | J20: 0.008074118389
A21: 11 | B21: 2.6 | C21: PINTURA DE LIGAÇÃO COM EMULSÃO ASFÁLTICA RR-2C | D21: 96402 | E21: M2 | F21: 64120 | G21: =VLOOKUP(A21,CPU!$A$1:$N$4656,9) -> 0.78 | H21: =VLOOKUP(A21,CPU!$A$1:$N$4656,10) -> 0.96 | I21: 61555.2 | J21: 0.006353404634
A22: 12 | B22: 2.7 | C22: EXECUÇÃO DE PAVIMENTO COM APLICAÇÃO DE CONCRETO ASFÁLTICO USINADO A QUENTE (CBUQ), CAMADA DE ROLAMENTO - EXCLUSIVE TRANSPORTE | D22: 95995 | E22: M3 | F22: 2345 | G22: =VLOOKUP(A22,CPU!$A$1:$N$4656,9) -> 91.51 | H22: =VLOOKUP(A22,CPU!$A$1:$N$4656,10) -> 112.48 | I22: 263765.6 | J22: 0.0272245007
A23: C | B23: 3 | C23: TRANSPORTE DE MATERIAIS | I23: =SUM(I24:I26) -> 683827 | J23: 0.07058103345
A24: 13 | B24: 3.1 | C24: TRANSPORTE COM CAMINHÃO BASCULANTE, EM VIA URBANA PAVIMENTADA | D24: 95877 | E24: M3XKM | F24: 366349.9986 | G24: =VLOOKUP(A24,CPU!$A$1:$N$4656,9) -> 1.36 | H24: =VLOOKUP(A24,CPU!$A$1:$N$4656,10) -> 1.67 | I24: =ROUND(F24*H24,2) -> 611804.5 | J24: 0.06314724906
A25: 13.5 | B25: 3.2 | C25: TRANSPORTE COM CAMINHÃO CARROCERIA 9T, EM VIA URBANA PAVIMENTADA | D25: 100947 | E25: TXKM | F25: 24950 | G25: =VLOOKUP(A25,CPU!$A$1:$N$4656,9) -> 1.49 | H25: =VLOOKUP(A25,CPU!$A$1:$N$4656,10) -> 1.83 | I25: =ROUND(F25*H25,2) -> 45658.5 | J25: 0.004712630703
A26: 14 | B26: 3.3 | C26: TRANSPORTE COM CAMINHÃO TANQUE DE TRANSPORTE DE MATERIAL ASFÁLTICO DE 30000 L, EM VIA URBANA PAVIMENTADA | D26: 102331 | E26: TXKM | F26: 50700 | G26: =VLOOKUP(A26,CPU!$A$1:$N$4656,9) -> 0.42 | H26: =VLOOKUP(A26,CPU!$A$1:$N$4656,10) -> 0.52 | I26: =ROUND(F26*H26,2) -> 26364 | J26: 0.002721153692
A27: D | B27: 4 | C27: OBRAS COMPLEMENTARES | I27: =SUM(I28:I32) -> 2073639.18 | J27: 0.2140301514
A28: 15 | B28: 4.1 | C28: ASSENTAMENTO DE GUIA (MEIO-FIO) EM TRECHO RETO, CONFECCIONADA EM CONCRETO PRÉ-FABRICADO, DIMENSÕES 100X15X13X30 CM (COMPRIMENTO X BASE INFERIOR X BASE SUPERIOR X ALTURA), PARA VIAS URBANAS (USO VIÁRIO) | D28: 94273 | E28: M | F28: 18554 | G28: =VLOOKUP(A28,CPU!$A$1:$N$4656,9) -> 42.07 | H28: =VLOOKUP(A28,CPU!$A$1:$N$4656,10) -> 51.71 | I28: =ROUND(F28*H28,2) -> 959427.34 | J28: 0.09902705389
A29: 15.05 | B29: 4.2 | C29: EXECUÇÃO DE SARJETA DE CONCRETO USINADO, MOLDADA IN LOCO EM TRECHO RETO, 30 CM BASE X 15 CM ALTURA | D29: 94281 | E29: M | F29: 18554 | G29: =VLOOKUP(A29,CPU!$A$1:$N$4656,9) -> 45.3 | H29: =VLOOKUP(A29,CPU!$A$1:$N$4656,10) -> 55.68 | I29: =ROUND(F29*H29,2) -> 1033086.72 | J29: 0.1066297884
A30: 15.1 | B30: 4.3 | C30: FORNECIMENTO E INSTALAÇÃO DE PLACA DE SINALIZAÇÃO VIÁRIA | D30: CPU.4 | E30: UN. | F30: 39 | G30: =VLOOKUP(A30,CPU!$A$1:$N$4656,9) -> 577.65 | H30: =VLOOKUP(A30,CPU!$A$1:$N$4656,10) -> 710.05 | I30: =ROUND(F30*H30,2) -> 27691.95 | J30: 0.002858217721
A31: 15.2 | B31: 4.4 | C31: PLACA DE AÇO ESMALTADA PARA IDENTIFICACAO DE RUA, *45 CM X 20* CM | D31: 13521 | E31: UN. | F31: 75 | G31: =VLOOKUP(A31,CPU!$A$1:$N$4656,9) -> 148.5 | H31: =VLOOKUP(A31,CPU!$A$1:$N$4656,10) -> 182.54 | I31: =ROUND(F31*H31,2) -> 13690.5 | J31: 0.001413061547
A32: 15.3 | B32: 4.5 | C32: PINTURA DE FAIXA COM TINTA ACRÍLICA - ESPESSURA DE 0,6 MM | D32: 5213401a | E32: M2 | F32: 1113.24 | G32: =VLOOKUP(A32,CPU!$A$1:$N$4656,9) -> 29.0411 | H32: =VLOOKUP(A32,CPU!$A$1:$N$4656,10) -> 35.7 | I32: =ROUND(F32*H32,2) -> 39742.67 | J32: 0.004102029784
A33: E | B33: 5 | C33: FORNECIMENTOS - MATERIAL ASFÁLTICO (BDI DIFERENCIADO) | I33: =SUM(I34:I36) -> 4121699.18 | J33: 0.4254201541
A34: 17 | B34: 5.1 | C34: AQUISIÇÃO DE ASFALTO DILUIDO DE PETROLEO CM-30 - EXCLUSIVE TRANSPORTE | D34: CPU.5 | E34: T | F34: 76.944 | G34: =VLOOKUP(A34,CPU!$A$1:$N$4656,9) -> 6532.51 | H34: =VLOOKUP(A34,CPU!$A$1:$N$4656,10) -> 7512.39 | I34: =ROUND(F34*H34,2) -> 578033.34 | J34: 0.05966156719
A35: 18 | B35: 5.2 | C35: AQUISIÇÃO DE EMULSAO ASFALTICA CATIONICA RR-2C - EXCLUSIVE TRANSPORTE | D35: CPU.6 | E35: T | F35: 28.854 | G35: =VLOOKUP(A35,CPU!$A$1:$N$4656,9) -> 3690 | H35: =VLOOKUP(A35,CPU!$A$1:$N$4656,10) -> 4243.5 | I35: =ROUND(F35*H35,2) -> 122441.95 | J35: 0.01263781537
A36: 19 | B36: 5.3 | C36: AQUISIÇÃO DE CONCRETO BETUMINOSO USINADO A QUENTE (CBUQ) PARA PAVIMENTACAO ASFALTICA, PADRAO DNIT, FAIXA C, COM CAP 50/70 - EXCLUSIVE TRANSPORTE | D36: CPU.7 | E36: T | F36: 5991.006 | G36: =VLOOKUP(A36,CPU!$A$1:$N$4656,9) -> 496.57 | H36: =VLOOKUP(A36,CPU!$A$1:$N$4656,10) -> 571.06 | I36: =ROUND(F36*H36,2) -> 3421223.89 | J36: 0.3531207715
B37: TOTAL GERAL DA OBRA COM BDI | I37: =SUM(I9,I15,I23,I27,I33) -> 9688537.65 | J37: =I37/F20 -> 151.1000881 | K37: / m²

Sheet CPU
A1: 1 | B1: CODEVASF | E1: COMPOSIÇÃO DE PREÇO UNITÁRIO | I1: =H10 -> 5053.76 | J1: =H12 -> 6212.08 | K1: BDI CALCULADO: | M1: =ORÇAMENTO!I6 -> 0.2292
B2: OBRA: | C2: =ORÇAMENTO!C5 -> PAVIMENTAÇÃO ASFÁLTICA EM CBUQ - DIVERSAS RUAS (MONTES CLAROS / MG) | G2: DATA: | H2: =ORÇAMENTO!C6 -> OUTUBRO / 2.021 | K2: BDI DIFERENCIADO: | M2: ='BDI FORN'!D31/100 -> 0.15
B3: SERVIÇO: | C3: =VLOOKUP(A1,ORÇAMENTO!A10:I28,3) -> MOBILIZAÇÃO E DESMOBILIZAÇÃO | E3: Referência: | F3: =VLOOKUP(A1,ORÇAMENTO!A10:I28,4) -> CPU.1 | G3: UNIDADE: | H3: =VLOOKUP(A1,ORÇAMENTO!A10:I28,5) -> GL
B5: TIPO ITEM | C5: CODIGO ITEM | D5: DESCRIÇÃO ITEM | E5: UNIDADE ITEM | F5: COEFICIENTE | G5: PRECO UNITARIO | H5: CUSTO TOTAL
B6: COMPOSICAO | C6: 89876 | D6: CAMINHÃO BASCULANTE 14 M3, COM CAVALO MECÂNICO DE CAPACIDADE MÁXIMA DE TRAÇÃO COMBINADO DE 36000 KG, POTÊNCIA 286 CV, INCLUSIVE SEMIREBOQUE COM CAÇAMBA METÁLICA | E6: CHP DIURNO. | F6: 16 | G6: 246.54 | H6: =ROUNDDOWN(F6*G6,2) -> 3944.64
B7: COMPOSICAO | C7: 89877 | D7: CAMINHÃO BASCULANTE 14 M3, COM CAVALO MECÂNICO DE CAPACIDADE MÁXIMA DE TRAÇÃO COMBINADO DE 36000 KG, POTÊNCIA 286 CV, INCLUSIVE SEMIREBOQUE COM CAÇAMBA METÁLICA | E7: CHI DIURNO. | F7: 16 | G7: 53.61 | H7: =ROUNDDOWN(F7*G7,2) -> 857.76
B8: COMPOSIÇÃO | C8: 88316 | D8: SERVENTE COM ENCARGOS COMPLEMENTARES | E8: H | F8: 16 | G8: 15.71 | H8: 251.36
B9: PRODUÇÃO DA EQUIPE | E9: 1 | F9: CUSTO | H9: =SUM(H6:H8) -> 5053.76
B10: TOTAL | H10: =H9/E9 -> 5053.76
B11: BDI % | H11: =1+$M$1 -> 1.2292
B12: TOTAL DO SERVIÇO - R$ | H12: =ROUND(H10*H11,2) -> 6212.08
A14: =A1+1 -> 2 | B14: CODEVASF | E14: COMPOSIÇÃO DE PREÇO UNITÁRIO | I14: =H28 -> 259895.2 | J14: =H30 -> 319463.18
B15: OBRA: | C15: =$C$2 -> PAVIMENTAÇÃO ASFÁLTICA EM CBUQ - DIVERSAS RUAS (MONTES CLAROS / MG) | G15: DATA: | H15: =$H$2 -> OUTUBRO / 2.021 | I15: CALCULAR ÍNDICES PELO PORTE DA OBRA
B16: SERVIÇO: | C16: =VLOOKUP(A14,ORÇAMENTO!$A$10:$I$28,3) -> ADMINISTRAÇÃO LOCAL | E16: SINAPI | F16: CPU | G16: UNIDADE: | H16: =VLOOKUP(A14,ORÇAMENTO!$A$10:$I$28,5) -> GL
B18: TIPO ITEM | C18: CODIGO ITEM | D18: DESCRIÇÃO ITEM | E18: UNIDADE ITEM | F18: COEFICIENTE | G18: PRECO UNITARIO | H18: CUSTO TOTAL
B19: INSUMO | C19: 14250 | D19: ENERGIA ELÉTRICA | E19: kwh | F19: 80 | G19: 1.16 | H19: =ROUNDDOWN(F19*G19,2) -> 92.8
B20: INSUMO | C20: 14583 | D20: ÁGUA/ESGOTO | E20: m³ | F20: 6 | G20: 21.95 | H20: 131.7
B21: COTAÇÃO | C21: MERC. | D21: TELEFONE (PLANO CONTROLE) | E21: UNID | F21: 2 | G21: 50 | H21: 100
B22: INSUMO | C22: ED-50155 SEINFRA | D22: BANHEIRO QUÍMICO 110 X 120 X 230 CM COM MANUTENÇÃO (CONSIDERANDO OBRAS SIMULTÂNEAS) | E22: MÊS | F22: 2 | G22: 515 | H22: 1030
B23: COMPOSICAO | C23: 90777 | D23: Engenheiro Civil Júnior com encargos complementares | E23: H | F23: 200 | G23: 95.07 | H23: 19014
B24: COMPOSICAO | C24: 90776 | D24: Encarregado Geral com encargos complementares | E24: H | F24: 200 | G24: 42.26 | H24: 8452
B25: COMPOSICAO | C25: 88321 | D25: Tecnico de Laboratório com encargos complementares | E25: H | F25: 80 | G25: 29.17 | H25: 2333.6
B26: COMPOSICAO | C26: 90772 | D26: Auxiliar de escritório com encargos complementares | E26: H | F26: 80 | G26: 16.66 | H26: 1332.8
B27: PRODUÇÃO DA EQUIPE | E27: 0.125 | F27: CUSTO | H27: =SUM(H19:H26) -> 32486.9
B28: TOTAL | H28: =ROUND(H27/E27,2) -> 259895.2
B29: BDI % | H29: =1+$M$1 -> 1.2292
B30: TOTAL DO SERVIÇO - R$ | H30: =ROUND(H28*H29,2) -> 319463.18
A32: =A14+1 -> 3 | B32: CODEVASF | E32: COMPOSIÇÃO DE PREÇO UNITÁRIO | I32: =H41 -> 50391.15 | J32: =H43 -> 61940.8
B33: OBRA: | C33: =$C$2 -> PAVIMENTAÇÃO ASFÁLTICA EM CBUQ - DIVERSAS RUAS (MONTES CLAROS / MG) | G33: DATA: | H33: =$H$2 -> OUTUBRO / 2.021 | I33: QUANTIDADES PELO PORTE E PRAZO DA OBRA
B34: SERVIÇO: | C34: =VLOOKUP(A32,ORÇAMENTO!$A$10:$I$28,3) -> CANTEIRO DE OBRAS | E34: SINAPI | F34: =VLOOKUP(A32,ORÇAMENTO!$A$10:$I$28,4) -> CPU.3 | G34: UNIDADE: | H34: =VLOOKUP(A32,ORÇAMENTO!$A$10:$I$28,5) -> GL
B36: TIPO ITEM | C36: CODIGO ITEM | D36: DESCRIÇÃO ITEM | E36: UNIDADE ITEM | F36: COEFICIENTE | G36: PRECO UNITARIO | H36: CUSTO TOTAL
B37: COMPOSICAO | C37: 93207 | D37: EXECUÇÃO DE ESCRITÓRIO EM CANTEIRO DE OBRA EM CHAPA DE MADEIRA COMPENSADA COM MOBILIÁRIO | E37: M2 | F37: 10 | G37: 1239.17 | H37: =ROUNDDOWN(F37*G37,2) -> 12391.7
B38: COMPOSICAO | C38: 93208 | D38: EXECUÇÃO DE ALMOXARIFADO EM CANTEIRO DE OBRA EM CHAPA DE MADEIRA COMPENSADA, INCLUSO PRATELEIRAS | E38: M2 | F38: 15 | G38: 1088.51 | H38: 16327.65
B39: COMPOSICAO | C39: 93312 | D39: EXECUÇÃO DE SANITÁRIO E VESTIÁRIO EM CANTEIRO DE OBRA EM CHAPA DE MADEIRA COMPENSADA | E39: M2 | F39: 20 | G39: 1083.59 | H39: =ROUNDDOWN(F39*G39,2) -> 21671.8
B40: PRODUÇÃO DA EQUIPE | E40: 1 | F40: CUSTO | H40: =SUM(H37:H39) -> 50391.15
B41: TOTAL | H41: =H40/E40 -> 50391.15
B42: BDI % | H42: =1+$M$1 -> 1.2292
B43: TOTAL DO SERVIÇO - R$ | H43: =ROUND(H41*H42,2) -> 61940.8
A45: =A32+1 -> 4 | B45: CODEVASF | E45: COMPOSIÇÃO DE PREÇO UNITÁRIO | I45: =H58 -> 551.75 | J45: =H60 -> 678.21
B46: OBRA: | C46: =$C$2 -> PAVIMENTAÇÃO ASFÁLTICA EM CBUQ - DIVERSAS RUAS (MONTES CLAROS / MG) | G46: DATA: | H46: =$H$2 -> OUTUBRO / 2.021
B47: SERVIÇO: | C47: =VLOOKUP(A45,ORÇAMENTO!$A$10:$I$28,3) -> PLACA DE OBRA EM CHAPA DE AÇO GALVANIZADO | E47: SINAPI | F47: =VLOOKUP(A45,ORÇAMENTO!$A$10:$I$28,4) -> 74209/001 | G47: UNIDADE: | H47: =VLOOKUP(A45,ORÇAMENTO!$A$10:$I$28,5) -> M2
B49: TIPO ITEM | C49: CODIGO ITEM | D49: DESCRIÇÃO ITEM | E49: UNIDADE ITEM | F49: COEFICIENTE | G49: PRECO UNITARIO | H49: CUSTO TOTAL
B50: INSUMO | C50: 4417 | D50: SARRAFO DE MADEIRA NAO APARELHADA *2,5 X 7* CM, MACARANDUBA, ANGELIM OU EQUIVALENTE DA REGIAO | E50: M | F50: 1,0000000 | G50: 13.06 | H50: =ROUNDDOWN(F50*G50,2) -> 13.06
B51: INSUMO | C51: 4491 | D51: PONTALETE DE MADEIRA NAO APARELHADA *7,5 X 7,5* CM (3 X 3 ") PINUS, MISTA OU EQUIVALENTE DA REGIAO | E51: M | F51: 4,0000000 | G51: 7.54 | H51: 30.16
B52: INSUMO | C52: 4813 | D52: PLACA DE OBRA (PARA CONSTRUCAO CIVIL) EM CHAPA GALVANIZADA *N. 22*, ADESIVADA, DE *2,0 X 1,125* M | E52: M2 | F52: 1,0000000 | G52: 450 | H52: 450
B53: INSUMO | C53: 5075 | D53: PREGO DE ACO POLIDO COM CABECA 18 X 30 (2 3/4 X 10) | E53: KG | F53: 0,1100000 | G53: 19.79 | H53: 2.17
B54: COMPOSICAO | C54: 88262 | D54: CARPINTEIRO DE FORMAS COM ENCARGOS COMPLEMENTARES | E54: H | F54: 1,0000000 | G54: 21.87 | H54: 21.87
B55: COMPOSICAO | C55: 88316 | D55: SERVENTE COM ENCARGOS COMPLEMENTARES | E55: H | F55: 2,0000000 | G55: 15.71 | H55: 31.42
B56: COMPOSICAO | C56: 94962 | D56: CONCRETO MAGRO PARA LASTRO, TRAÇO 1:4,5:4,5 (CIMENTO/ AREIA MÉDIA/ BRITA 1) | E56: M3 | F56: 0,0100000 | G56: 307.48 | H56: 3.07
B57: PRODUÇÃO DA EQUIPE | E57: 1 | F57: CUSTO | H57: =SUM(H50:H56) -> 551.75
B58: TOTAL | H58: =H57/E57 -> 551.75
B59: BDI % | H59: =1+$M$1 -> 1.2292
B60: TOTAL DO SERVIÇO - R$ | H60: =ROUND(H58*H59,2) -> 678.21
A62: =A45+1 -> 5 | B62: CODEVASF | E62: COMPOSIÇÃO DE PREÇO UNITÁRIO | I62: =H70 -> 0.58 | J62: =H72 -> 0.71
B63: OBRA: | C63: =$C$2 -> PAVIMENTAÇÃO ASFÁLTICA EM CBUQ - DIVERSAS RUAS (MONTES CLAROS / MG) | G63: DATA: | H63: =$H$2 -> OUTUBRO / 2.021
B64: SERVIÇO: | C64: =VLOOKUP(A62,ORÇAMENTO!$A$10:$I$28,3) -> LOCAÇÃO DE PAVIMENTAÇÃO | E64: SINAPI | F64: =VLOOKUP(A62,ORÇAMENTO!$A$10:$I$28,4) -> 99064 | G64: UNIDADE: | H64: =VLOOKUP(A62,ORÇAMENTO!$A$10:$I$28,5) -> M
B66: TIPO ITEM | C66: CODIGO ITEM | D66: DESCRIÇÃO ITEM | E66: UNIDADE ITEM | F66: COEFICIENTE | G66: PRECO UNITARIO | H66: CUSTO TOTAL
B67: COMPOSICAO | C67: 99058 | D67: LOCAÇÃO DE PONTO PARA REFERÊNCIA TOPOGRÁFICA | E67: UN | F67: 0.05 | G67: 11.63 | H67: =ROUNDDOWN(F67*G67,2) -> 0.58
B69: PRODUÇÃO DA EQUIPE | E69: 1 | F69: CUSTO | H69: =SUM(H67:H68) -> 0.58
B70: TOTAL | H70: =H69/E69 -> 0.58
B71: BDI % | H71: =1+$M$1 -> 1.2292
B72: TOTAL DO SERVIÇO - R$ | H72: =ROUND(H70*H71,2) -> 0.71
A74: =A62+1 -> 6 | B74: CODEVASF | E74: COMPOSIÇÃO DE PREÇO UNITÁRIO | I74: =H83 -> 1.63 | J74: =H85 -> 2
B75: OBRA: | C75: =$C$2 -> PAVIMENTAÇÃO ASFÁLTICA EM CBUQ - DIVERSAS RUAS (MONTES CLAROS / MG) | G75: DATA: | H75: =$H$2 -> OUTUBRO / 2.021 | J75: =H86 -> 0
B76: SERVIÇO: | C76: =VLOOKUP(A74,ORÇAMENTO!$A$10:$I$28,3) -> ESCAVAÇÃO HORIZONTAL EM SOLO DE 1A CATEGORIA | E76: SINAPI | F76: =VLOOKUP(A74,ORÇAMENTO!$A$10:$I$28,4) -> 101116 | G76: UNIDADE: | H76: =VLOOKUP(A74,ORÇAMENTO!$A$10:$I$28,5) -> M3
B78: TIPO ITEM | C78: CODIGO ITEM | D78: DESCRIÇÃO ITEM | E78: UNIDADE ITEM | F78: COEFICIENTE | G78: PRECO UNITARIO | H78: CUSTO TOTAL
B79: COMPOSICAO | C79: 5847 | D79: TRATOR DE ESTEIRAS, POTÊNCIA 170 HP, PESO OPERACIONAL 19 T, CAÇAMBA 5,2 M3 - CHP DIURNO. AF_06/2014 | E79: CHP | F79: 0,0048000 | G79: 199,24 | H79: =ROUNDDOWN(F79*G79,2) -> 0.95
B80: COMPOSICAO | C80: 5849 | D80: TRATOR DE ESTEIRAS, POTÊNCIA 170 HP, PESO OPERACIONAL 19 T, CAÇAMBA 5,2 M3 - CHI DIURNO. AF_06/2014 | E80: CHI | F80: 0,0082000 | G80: 59,09 | H80: 0.48
B81: COMPOSICAO | C81: 88316 | D81: SERVENTE COM ENCARGOS COMPLEMENTARES | E81: H | F81: 0,0131000 | G81: 15,71 | H81: 0.2
B82: PRODUÇÃO DA EQUIPE | E82: 1 | F82: CUSTO | H82: =SUM(H79:H81) -> 1.63
B83: TOTAL | H83: =H82/E82 -> 1.63
B84: BDI % | H84: =1+$M$1 -> 1.2292
B85: TOTAL DO SERVIÇO - R$ | H85: =ROUND(H83*H84,2) -> 2
A87: 7 | B87: CODEVASF | E87: COMPOSIÇÃO DE PREÇO UNITÁRIO | I87: =H97 -> 6.41 | J87: =H99 -> 7.88
B88: OBRA: | C88: =$C$2 -> PAVIMENTAÇÃO ASFÁLTICA EM CBUQ - DIVERSAS RUAS (MONTES CLAROS / MG) | G88: DATA: | H88: =$H$2 -> OUTUBRO / 2.021
B89: SERVIÇO: | C89: =VLOOKUP(A87,ORÇAMENTO!$A$10:$I$28,3) -> CARGA, MANOBRA E DESCARGA DE SOLOS E MATERIAIS GRANULARES EM CAMINHÃO BASCULANTE | E89: SINAPI | F89: =VLOOKUP(A87,ORÇAMENTO!$A$10:$I$28,4) -> 100976 | G89: UNIDADE: | H89: =VLOOKUP(A87,ORÇAMENTO!$A$10:$I$28,5) -> M3
B91: TIPO ITEM | C91: CODIGO ITEM | D91: DESCRIÇÃO ITEM | E91: UNIDADE ITEM | F91: COEFICIENTE | G91: PRECO UNITARIO | H91: CUSTO TOTAL
B92: COMPOSICAO | C92: 5940 | D92: PÁ CARREGADEIRA SOBRE RODAS, POTÊNCIA LÍQUIDA 128 HP, CAPACIDADE DA CAÇAMBA 1,7 A 2,8 M3, PESO OPERACIONAL 11632 KG - CHP DIURNO. AF_06/2014 | E92: CHP | F92: 0,0083000 | G92: 157,62 | H92: =ROUNDDOWN(F92*G92,2) -> 1.3
B93: COMPOSICAO | C93: 5942 | D93: PÁ CARREGADEIRA SOBRE RODAS, POTÊNCIA LÍQUIDA 128 HP, CAPACIDADE DA CAÇAMBA 1,7 A 2,8 M3, PESO OPERACIONAL 11632 KG - CHI DIURNO. AF_06/2014 | E93: CHI | F93: 0,0074000 | G93: 56,76 | H93: 0.42
B94: COMPOSICAO | C94: 89883 | D94: CAMINHÃO BASCULANTE 18 M3, COM CAVALO MECÂNICO DE CAPACIDADE MÁXIMA DE TRAÇÃO COMBINADO DE 45000 KG, POTÊNCIA 330 CV, INCLUSIVE SEMIREBOQUE COM CAÇAMBA METÁLICA - CHP DIURNO. AF_12/2014 | E94: CHP | F94: 0,0153000 | G94: 273,08 | H94: 4.17
B95: COMPOSICAO | C95: 89884 | D95: CAMINHÃO BASCULANTE 18 M3, COM CAVALO MECÂNICO DE CAPACIDADE MÁXIMA DE TRAÇÃO COMBINADO DE 45000 KG, POTÊNCIA 330 CV, INCLUSIVE SEMIREBOQUE COM CAÇAMBA METÁLICA - CHI DIURNO. AF_12/2014 | E95: CHI | F95: 0,0095000 | G95: 55,57 | H95: 0.52
B96: PRODUÇÃO DA EQUIPE | E96: 1 | F96: CUSTO | H96: =SUM(H92:H95) -> 6.41
B97: TOTAL | H97: =H96/E96 -> 6.41
B98: BDI % | H98: =1+$M$1 -> 1.2292
B99: TOTAL DO SERVIÇO - R$ | H99: =ROUND(H97*H98,2) -> 7.88
A101: 8 | B101: CODEVASF | E101: COMPOSIÇÃO DE PREÇO UNITÁRIO | I101: =H119 -> 0.7492 | J101: =H121 -> 0.92
B102: OBRA: | C102: =$C$2 -> PAVIMENTAÇÃO ASFÁLTICA EM CBUQ - DIVERSAS RUAS (MONTES CLAROS / MG) | G102: DATA: | H102: =$H$2 -> OUTUBRO / 2.021
B103: SERVIÇO: | C103: =VLOOKUP(A101,ORÇAMENTO!$A$10:$I$28,3) -> REGULARIZAÇÃO DO SUBLEITO | E103: SICRO | F103: =VLOOKUP(A101,ORÇAMENTO!$A$10:$I$28,4) -> 4011209a | G103: UNIDADE: | H103: =VLOOKUP(A101,ORÇAMENTO!$A$10:$I$28,5) -> M2
B105: TIPO ITEM | C105: CODIGO ITEM | D105: DESCRIÇÃO ITEM | E105: UNIDADE ITEM | F105: COEFICIENTE | G105: PRECO UNITARIO | H105: CUSTO TOTAL
B106: COMPOSICAO | C106: E9571 | D106: CAMINHÃO TANQUE COM CAPACIDADE DE 10.000 L - 188 KW | E106: CHP | F106: =2/1121.33*0.51 -> 0.0009096340952 | G106: 231.76 | H106: =ROUND(F106*G106,4) -> 0.2108
B107: COMPOSICAO | C107: E9571 | D107: CAMINHÃO TANQUE COM CAPACIDADE DE 10.000 L - 188 KW | E107: CHI | F107: =2/1121.33*0.49 -> 0.0008739621699 | G107: 56.65 | H107: =ROUND(F107*G107,4) -> 0.0495
B108: COMPOSICAO | C108: E9518 | D108: GRADE DE 24 DISCOS REBOCÁVEL DE D = 60 CM (24") | E108: CHP | F108: =1/1121.33*0.69 -> 0.0006153407115 | G108: 2.96 | H108: 0.0018
B109: COMPOSICAO | C109: E9518 | D109: GRADE DE 24 DISCOS REBOCÁVEL DE D = 60 CM (24") | E109: CHI | F109: =1/1121.33*0.31 -> 0.0002764574211 | G109: 2 | H109: 0.0006
B110: COMPOSICAO | C110: E9524 | D110: MOTONIVELADORA - 93 KW | E110: CHP | F110: =1/1121.33*0.71 -> 0.0006331766741 | G110: 185.1 | H110: 0.1172
B111: COMPOSICAO | C111: E9524 | D111: MOTONIVELADORA - 93 KW | E111: CHI | F111: =1/1121.33*0.29 -> 0.0002586214584 | G111: 76.73 | H111: 0.0198
B112: COMPOSICAO | C112: 88316 | D112: SERVENTE COM ENCARGOS COMPLEMENTARES | E112: H | F112: =1/1121.33 -> 0.0008917981326 | G112: 15.71 | H112: 0.014
B113: COMPOSICAO | C113: E9762 | D113: ROLO COMPACTADOR DE PNEUS AUTOPROPELIDO DE 27 T - 85 KW | E113: CHP | F113: =1/1121.33*0.96 -> 0.0008561262073 | G113: 153.65 | H113: 0.1315
B114: COMPOSICAO | C114: E9762 | D114: ROLO COMPACTADOR DE PNEUS AUTOPROPELIDO DE 27 T - 85 KW | E114: CHI | F114: =1/1121.33*0.04 -> 3.56719253e-05 | G114: 71.4 | H114: 0.0025
B115: COMPOSICAO | C115: E9577 | D115: TRATOR AGRÍCOLA SOBRE PNEUS - 77 KW | E115: CHP | F115: =1/1121.33*0.69 -> 0.0006153407115 | G115: 94.13 | H115: 0.0579
B116: COMPOSICAO | C116: E9577 | D116: TRATOR AGRÍCOLA SOBRE PNEUS - 77 KW | E116: CHI | F116: =1/1121.33*0.31 -> 0.0002764574211 | G116: 30.81 | H116: 0.0085
B117: COMPOSICAO | C117: E9685 | D117: ROLO COMPACTADOR PÉ DE CARNEIRO VIBRATÓRIO AUTOPROPELIDO POR PNEUS DE 11,6 T - 82 KW | E117: CHP | F117: =1/1121.33 -> 0.0008917981326 | G117: 151.46 | H117: 0.1351
B118: PRODUÇÃO DA EQUIPE | E118: 1 | F118: CUSTO | H118: =SUM(H106:H117) -> 0.7492
B119: TOTAL | H119: =H118/E118 -> 0.7492
B120: BDI % | H120: =1+$M$1 -> 1.2292
B121: TOTAL DO SERVIÇO - R$ | H121: =ROUND(H119*H120,2) -> 0.92
A123: 9 | B123: CODEVASF | E123: COMPOSIÇÃO DE PREÇO UNITÁRIO | I123: =H139 -> 146.08 | J123: =H141 -> 179.56
B124: OBRA: | C124: =$C$2 -> PAVIMENTAÇÃO ASFÁLTICA EM CBUQ - DIVERSAS RUAS (MONTES CLAROS / MG) | G124: DATA: | H124: =$H$2 -> OUTUBRO / 2.021
B125: SERVIÇO: | C125: =VLOOKUP(A123,ORÇAMENTO!$A$10:$I$28,3) -> EXECUÇÃO E COMPACTAÇÃO DE BASE E OU SUB BASE PARA PAVIMENTAÇÃO DE BRITA GRADUADA SIMPLES - EXCLUSIVE TRANSPORTE | E125: SINAPI | F125: =VLOOKUP(A123,ORÇAMENTO!$A$10:$I$28,4) -> 96396 | G125: UNIDADE: | H125: =VLOOKUP(A123,ORÇAMENTO!$A$10:$I$28,5) -> M3
B127: TIPO ITEM | C127: CODIGO ITEM | D127: DESCRIÇÃO ITEM | E127: UNIDADE ITEM | F127: COEFICIENTE | G127: PRECO UNITARIO | H127: CUSTO TOTAL
B128: COMPOSICAO | C128: 5684 | D128: ROLO COMPACTADOR VIBRATÓRIO DE UM CILINDRO AÇO LISO, POTÊNCIA 80 HP, PESO OPERACIONAL MÁXIMO 8,1 T, IMPACTO DINÂMICO 16,15 / 9,5 T, LARGURA DE TRABALHO 1,68 M - CHP DIURNO. AF_06/2014 | E128: CHP | F128: 0,0090000 | G128: 108,41 | H128: =ROUNDDOWN(F128*G128,2) -> 0.97
B129: COMPOSICAO | C129: 5685 | D129: ROLO COMPACTADOR VIBRATÓRIO DE UM CILINDRO AÇO LISO, POTÊNCIA 80 HP, PESO OPERACIONAL MÁXIMO 8,1 T, IMPACTO DINÂMICO 16,15 / 9,5 T, LARGURA DE TRABALHO 1,68 M - CHI DIURNO. AF_06/2014 | E129: CHI | F129: 0,0210000 | G129: 39,30 | H129: 0.82
B130: COMPOSICAO | C130: 5901 | D130: CAMINHÃO PIPA 10.000 L TRUCADO, PESO BRUTO TOTAL 23.000 KG, CARGA ÚTIL MÁXIMA 15.935 KG, DISTÂNCIA ENTRE EIXOS 4,8 M, POTÊNCIA 230 CV, INCLUSIVE TANQUE DE AÇO PARA TRANSPORTE DE ÁGUA - CHP DIURNO. AF_06/2014 | E130: CHP | F130: 0,0020000 | G130: 229,83 | H130: 0.45
B131: COMPOSICAO | C131: 5903 | D131: CAMINHÃO PIPA 10.000 L TRUCADO, PESO BRUTO TOTAL 23.000 KG, CARGA ÚTIL MÁXIMA 15.935 KG, DISTÂNCIA ENTRE EIXOS 4,8 M, POTÊNCIA 230 CV, INCLUSIVE TANQUE DE AÇO PARA TRANSPORTE DE ÁGUA - CHI DIURNO. AF_06/2014 | E131: CHI | F131: 0,0280000 | G131: 42,66 | H131: 1.19
B132: COMPOSICAO | C132: 5932 | D132: MOTONIVELADORA POTÊNCIA BÁSICA LÍQUIDA (PRIMEIRA MARCHA) 125 HP, PESO BRUTO 13032 KG, LARGURA DA LÂMINA DE 3,7 M - CHP DIURNO. AF_06/2014 | E132: CHP | F132: 0,0080000 | G132: 184,38 | H132: 1.47
B133: COMPOSICAO | C133: 5934 | D133: MOTONIVELADORA POTÊNCIA BÁSICA LÍQUIDA (PRIMEIRA MARCHA) 125 HP, PESO BRUTO 13032 KG, LARGURA DA LÂMINA DE 3,7 M - CHI DIURNO. AF_06/2014 | E133: CHI | F133: 0,0220000 | G133: 64,79 | H133: 1.42
B134: COMPOSICAO | C134: 88316 | D134: SERVENTE COM ENCARGOS COMPLEMENTARES | E134: H | F134: 0,0300000 | G134: 15,71 | H134: 0.47
B135: COMPOSICAO | C135: 96393 | D135: USINAGEM DE BRITA GRADUADA SIMPLES. AF_03/2020 | E135: M3 | F135: 1,0000000 | G135: 137,34 | H135: 137.34
B136: COMPOSICAO | C136: 96463 | D136: ROLO COMPACTADOR DE PNEUS, ESTATICO, PRESSAO VARIAVEL, POTENCIA 110 HP, PESO SEM/COM LASTRO 10,8/27 T, LARGURA DE ROLAGEM 2,30 M - CHP DIURNO. AF_06/2017 | E136: CHP | F136: 0,0040000 | G136: 143,32 | H136: 0.57
B137: COMPOSICAO | C137: 96464 | D137: ROLO COMPACTADOR DE PNEUS, ESTATICO, PRESSAO VARIAVEL, POTENCIA 110 HP, PESO SEM/COM LASTRO 10,8/27 T, LARGURA DE ROLAGEM 2,30 M - CHI DIURNO. AF_06/2017 | E137: CHI | F137: 0,0260000 | G137: 53,38 | H137: 1.38
B138: PRODUÇÃO DA EQUIPE | E138: 1 | F138: CUSTO | H138: =SUM(H128:H137) -> 146.08
B139: TOTAL | H139: =H138/E138 -> 146.08
B140: BDI % | H140: =1+$M$1 -> 1.2292
B141: TOTAL DO SERVIÇO - R$ | H141: =ROUND(H139*H140,2) -> 179.56
A143: 10 | B143: CODEVASF | E143: COMPOSIÇÃO DE PREÇO UNITÁRIO | I143: =H158 -> 0.99 | J143: =H160 -> 1.22
B144: OBRA: | C144: =$C$2 -> PAVIMENTAÇÃO ASFÁLTICA EM CBUQ - DIVERSAS RUAS (MONTES CLAROS / MG) | G144: DATA: | H144: =$H$2 -> OUTUBRO / 2.021
B145: SERVIÇO: | C145: =VLOOKUP(A143,ORÇAMENTO!$A$10:$I$28,3) -> IMPRIMAÇÃO COM ASFALTO DILUIDO CM-30 | E145: SINAPI | F145: =VLOOKUP(A143,ORÇAMENTO!$A$10:$I$28,4) -> 96401 | G145: UNIDADE: | H145: =VLOOKUP(A143,ORÇAMENTO!$A$10:$I$28,5) -> M2
B147: TIPO ITEM | C147: CODIGO ITEM | D147: DESCRIÇÃO ITEM | E147: UNIDADE ITEM | F147: COEFICIENTE | G147: PRECO UNITARIO | H147: CUSTO TOTAL
B148: COMPOSICAO | C148: 5839 | D148: VASSOURA MECÂNICA REBOCÁVEL COM ESCOVA CILÍNDRICA, LARGURA ÚTIL DE VARRIMENTO DE 2,44 M | E148: CHP | F148: 0,0020000 | G148: 10,64 | H148: =ROUNDDOWN(F148*G148,2) -> 0.02
B149: COMPOSICAO | C149: 5841 | D149: VASSOURA MECÂNICA REBOCÁVEL COM ESCOVA CILÍNDRICA, LARGURA ÚTIL DE VARRIMENTO DE 2,44 M | E149: CHI | F149: 0,0040000 | G149: 5,06 | H149: 0.02
B150: INSUMO | C150: MATRO-10374 | D150: ASFALTO DILUIDO DE PETROLEO CM-30 (FORNECIMENTO COM BDI DIFERENCIADO) | E150: T | F150: =1.2/1000 -> 0.0012 | H150: 0
B151: COMPOSICAO | C151: 83362 | D151: ESPARGIDOR DE ASFALTO PRESSURIZADO, TANQUE 6 M3 COM ISOLAÇÃO TÉRMICA, AQUECIDO COM 2 MAÇARICOS, COM BARRA ESPARGIDORA 3,60 M, MONTADO SOBRE CAMINHÃO TOCO, PBT 14.300 KG, POTÊNCIA 185 CV | E151: CHP | F151: 0,0010000 | G151: 231,02 | H151: 0.23
B152: COMPOSICAO | C152: 88316 | D152: SERVENTE COM ENCARGOS COMPLEMENTARES | E152: H | F152: 0,0060000 | G152: 15,71 | H152: 0.09
B153: COMPOSICAO | C153: 89035 | D153: TRATOR DE PNEUS, POTÊNCIA 85 CV, TRAÇÃO 4X4, PESO COM LASTRO DE 4.675 KG | E153: CHP | F153: 0,0020000 | G153: 140,90 | H153: 0.28
B154: COMPOSICAO | C154: 89036 | D154: TRATOR DE PNEUS, POTÊNCIA 85 CV, TRAÇÃO 4X4, PESO COM LASTRO DE 4.675 KG | E154: CHI | F154: 0,0040000 | G154: 33,46 | H154: 0.13
B155: COMPOSICAO | C155: 91486 | D155: ESPARGIDOR DE ASFALTO PRESSURIZADO, TANQUE 6 M3 COM ISOLAÇÃO TÉRMICA, AQUECIDO COM 2 MAÇARICOS, COM BARRA ESPARGIDORA 3,60 M, MONTADO SOBRE CAMINHÃO TOCO, PBT 14.300 KG, POTÊNCIA 185 CV | E155: CHI | F155: 0,0050000 | G155: 44,47 | H155: 0.22
H156: 0
B157: PRODUÇÃO DA EQUIPE | E157: 1 | F157: CUSTO | H157: =SUM(H148:H156) -> 0.99
B158: TOTAL | H158: =H157/E157 -> 0.99
B159: BDI % | H159: =1+$M$1 -> 1.2292
B160: TOTAL DO SERVIÇO - R$ | H160: =ROUND(H158*H159,2) -> 1.22
A162: 11 | B162: CODEVASF | E162: COMPOSIÇÃO DE PREÇO UNITÁRIO | I162: =H177 -> 0.78 | J162: =H179 -> 0.96
B163: OBRA: | C163: =$C$2 -> PAVIMENTAÇÃO ASFÁLTICA EM CBUQ - DIVERSAS RUAS (MONTES CLAROS / MG) | G163: DATA: | H163: =$H$2 -> OUTUBRO / 2.021
B164: SERVIÇO: | C164: =VLOOKUP(A162,ORÇAMENTO!$A$10:$I$28,3) -> PINTURA DE LIGAÇÃO COM EMULSÃO ASFÁLTICA RR-2C | E164: SINAPI | F164: =VLOOKUP(A162,ORÇAMENTO!$A$10:$I$28,4) -> 96402 | G164: UNIDADE: | H164: =VLOOKUP(A162,ORÇAMENTO!$A$10:$I$28,5) -> M2
B166: TIPO ITEM | C166: CODIGO ITEM | D166: DESCRIÇÃO ITEM | E166: UNIDADE ITEM | F166: COEFICIENTE | G166: PRECO UNITARIO | H166: CUSTO TOTAL
B167: COMPOSICAO | C167: 5839 | D167: VASSOURA MECÂNICA REBOCÁVEL COM ESCOVA CILÍNDRICA, LARGURA ÚTIL DE VARRIMENTO DE 2,44 M - CHP DIURNO. AF_06/2014 | E167: CHP | F167: 0,0020000 | G167: 10,64 | H167: =ROUNDDOWN(F167*G167,2) -> 0.02
B168: COMPOSICAO | C168: 5841 | D168: VASSOURA MECÂNICA REBOCÁVEL COM ESCOVA CILÍNDRICA, LARGURA ÚTIL DE VARRIMENTO DE 2,44 M - CHI DIURNO. AF_06/2014 | E168: CHI | F168: 0,0040000 | G168: 5,06 | H168: 0.02
B169: INSUMO | C169: 41903 | D169: EMULSAO ASFALTICA CATIONICA RR-2C PARA USO EM PAVIMENTACAO ASFALTICA (COLETADO CAIXA NA ANP ACRESCIDO DE ICMS) | E169: KG | F169: 0,4500000 | H169: 0
B170: COMPOSICAO | C170: 83362 | D170: ESPARGIDOR DE ASFALTO PRESSURIZADO, TANQUE 6 M3 COM ISOLAÇÃO TÉRMICA, AQUECIDO COM 2 MAÇARICOS, COM BARRA ESPARGIDORA 3,60 M, MONTADO SOBRE CAMINHÃO TOCO, PBT 14.300 KG, POTÊNCIA 185 CV - CHP DIURNO. AF_08/2015 | E170: CHP | F170: 0,0004000 | G170: 231,02 | H170: 0.09
B171: COMPOSICAO | C171: 88316 | D171: SERVENTE COM ENCARGOS COMPLEMENTARES | E171: H | F171: 0,0055000 | G171: 15,71 | H171: 0.08
B172: COMPOSICAO | C172: 89035 | D172: TRATOR DE PNEUS, POTÊNCIA 85 CV, TRAÇÃO 4X4, PESO COM LASTRO DE 4.675 KG - CHP DIURNO. AF_06/2014 | E172: CHP | F172: 0,0017000 | G172: 140,90 | H172: 0.23
B173: COMPOSICAO | C173: 89036 | D173: TRATOR DE PNEUS, POTÊNCIA 85 CV, TRAÇÃO 4X4, PESO COM LASTRO DE 4.675 KG - CHI DIURNO. AF_06/2014 | E173: CHI | F173: 0,0038000 | G173: 33,46 | H173: 0.12
B174: COMPOSICAO | C174: 91486 | D174: ESPARGIDOR DE ASFALTO PRESSURIZADO, TANQUE 6 M3 COM ISOLAÇÃO TÉRMICA, AQUECIDO COM 2 MAÇARICOS, COM BARRA ESPARGIDORA 3,60 M, MONTADO SOBRE CAMINHÃO TOCO, PBT 14.300 KG, POTÊNCIA 185 CV - CHI DIURNO. AF_08/2015 | E174: CHI | F174: 0,0051000 | G174: 44,47 | H174: 0.22
H175: 0
B176: PRODUÇÃO DA EQUIPE | E176: 1 | F176: CUSTO | H176: =SUM(H167:H175) -> 0.78
B177: TOTAL | H177: =H176/E176 -> 0.78
B178: BDI % | H178: =1+$M$1 -> 1.2292
B179: TOTAL DO SERVIÇO - R$ | H179: =ROUND(H177*H178,2) -> 0.96
A181: 12 | B181: CODEVASF | E181: COMPOSIÇÃO DE PREÇO UNITÁRIO | I181: =H199 -> 91.51 | J181: =H201 -> 112.48
B182: OBRA: | C182: =$C$2 -> PAVIMENTAÇÃO ASFÁLTICA EM CBUQ - DIVERSAS RUAS (MONTES CLAROS / MG) | G182: DATA: | H182: =$H$2 -> OUTUBRO / 2.021
B183: SERVIÇO: | C183: =VLOOKUP(A181,ORÇAMENTO!$A$10:$I$28,3) -> EXECUÇÃO DE PAVIMENTO COM APLICAÇÃO DE CONCRETO ASFÁLTICO USINADO A QUENTE (CBUQ), CAMADA DE ROLAMENTO - EXCLUSIVE TRANSPORTE | E183: SINAPI | F183: =VLOOKUP(A181,ORÇAMENTO!$A$10:$I$28,4) -> 95995 | G183: UNIDADE: | H183: =VLOOKUP(A181,ORÇAMENTO!$A$10:$I$28,5) -> M3
B185: TIPO ITEM | C185: CODIGO ITEM | D185: DESCRIÇÃO ITEM | E185: UNIDADE ITEM | F185: COEFICIENTE | G185: PRECO UNITARIO | H185: CUSTO TOTAL
B186: INSUMO | C186: 1518 | D186: CONCRETO BETUMINOSO USINADO A QUENTE (CBUQ) PARA PAVIMENTACAO ASFALTICA, PADRAO DNIT, FAIXA C, COM CAP 50/70 - AQUISICAO POSTO USINA | E186: T | F186: 2,5548000 | H186: =ROUNDDOWN(F186*G186,2) -> 0 | I186: RECOMENDADO PEGAR COTAÇÃO NAS USINAS MAIS PRÓXIMAS
B187: COMPOSICAO | C187: 5835 | D187: VIBROACABADORA DE ASFALTO SOBRE ESTEIRAS, LARGURA DE PAVIMENTAÇÃO 1,90 M A 5,30 M, POTÊNCIA 105 HP CAPACIDADE 450 T/H - CHP DIURNO. AF_11/2014 | E187: CHP | F187: 0,0464000 | G187: 344,57 | H187: 15.98
B188: COMPOSICAO | C188: 5837 | D188: VIBROACABADORA DE ASFALTO SOBRE ESTEIRAS, LARGURA DE PAVIMENTAÇÃO 1,90 M A 5,30 M, POTÊNCIA 105 HP CAPACIDADE 450 T/H - CHI DIURNO. AF_11/2014 | E188: CHI | F188: 0,0949000 | G188: 128,69 | H188: 12.21
B189: COMPOSICAO | C189: 88314 | D189: RASTELEIRO COM ENCARGOS COMPLEMENTARES | E189: H | F189: 1,1301000 | G189: 16,13 | H189: 18.22
B190: COMPOSICAO | C190: 91386 | D190: CAMINHÃO BASCULANTE 10 M3, TRUCADO CABINE SIMPLES, PESO BRUTO TOTAL 23.000 KG, CARGA ÚTIL MÁXIMA 15.935 KG, DISTÂNCIA ENTRE EIXOS 4,80 M, POTÊNCIA 230 CV INCLUSIVE CAÇAMBA METÁLICA - CHP DIURNO. AF_06/2014 | E190: CHP | F190: 0,0464000 | G190: 194,17 | H190: 9
B191: COMPOSICAO | C191: 95631 | D191: ROLO COMPACTADOR VIBRATORIO TANDEM, ACO LISO, POTENCIA 125 HP, PESO SEM/COM LASTRO 10,20/11,65 T, LARGURA DE TRABALHO 1,73 M - CHP DIURNO. AF_11/2016 | E191: CHP | F191: 0,0805000 | G191: 156,31 | H191: 12.58
B192: COMPOSICAO | C192: 95632 | D192: ROLO COMPACTADOR VIBRATORIO TANDEM, ACO LISO, POTENCIA 125 HP, PESO SEM/COM LASTRO 10,20/11,65 T, LARGURA DE TRABALHO 1,73 M - CHI DIURNO. AF_11/2016 | E192: CHI | F192: 0,0607000 | G192: 49,89 | H192: 3.02
B193: COMPOSICAO | C193: 96155 | D193: TRATOR DE PNEUS COM POTÊNCIA DE 85 CV, TRAÇÃO 4X4, COM VASSOURA MECÂNICA ACOPLADA - CHI DIURNO. AF_02/2017 | E193: CHI | F193: 0,1071000 | G193: 38,30 | H193: 4.1
B194: COMPOSICAO | C194: 96157 | D194: TRATOR DE PNEUS COM POTÊNCIA DE 85 CV, TRAÇÃO 4X4, COM VASSOURA MECÂNICA ACOPLADA - CHP DIURNO. AF_03/2017 | E194: CHP | F194: 0,0341000 | G194: 150,39 | H194: 5.12
B195: COMPOSICAO | C195: 96463 | D195: ROLO COMPACTADOR DE PNEUS, ESTATICO, PRESSAO VARIAVEL, POTENCIA 110 HP, PESO SEM/COM LASTRO 10,8/27 T, LARGURA DE ROLAGEM 2,30 M - CHP DIURNO. AF_06/2017 | E195: CHP | F195: 0,0419000 | G195: 143,32 | H195: 6
B196: COMPOSICAO | C196: 96464 | D196: ROLO COMPACTADOR DE PNEUS, ESTATICO, PRESSAO VARIAVEL, POTENCIA 110 HP, PESO SEM/COM LASTRO 10,8/27 T, LARGURA DE ROLAGEM 2,30 M - CHI DIURNO. AF_06/2017 | E196: CHI | F196: 0,0990000 | G196: 53,38 | H196: 5.28
H197: 0
B198: PRODUÇÃO DA EQUIPE | E198: 1 | F198: CUSTO | H198: =SUM(H186:H197) -> 91.51
B199: TOTAL | H199: =H198/E198 -> 91.51
B200: BDI % | H200: =1+$M$1 -> 1.2292
B201: TOTAL DO SERVIÇO - R$ | H201: =ROUND(H199*H200,2) -> 112.48
A203: 13 | B203: CODEVASF | E203: COMPOSIÇÃO DE PREÇO UNITÁRIO | I203: =H212 -> 1.36 | J203: =H214 -> 1.67
B204: OBRA: | C204: =$C$2 -> PAVIMENTAÇÃO ASFÁLTICA EM CBUQ - DIVERSAS RUAS (MONTES CLAROS / MG) | G204: DATA: | H204: =$H$2 -> OUTUBRO / 2.021
B205: SERVIÇO: | C205: =VLOOKUP(A203,ORÇAMENTO!$A$10:$I$28,3) -> TRANSPORTE COM CAMINHÃO BASCULANTE, EM VIA URBANA PAVIMENTADA | E205: SINAPI | F205: =VLOOKUP(A203,ORÇAMENTO!$A$10:$I$28,4) -> 95877 | G205: UNIDADE: | H205: =VLOOKUP(A203,ORÇAMENTO!$A$10:$I$28,5) -> M3XKM
B207: TIPO ITEM | C207: CODIGO ITEM | D207: DESCRIÇÃO ITEM | E207: UNIDADE ITEM | F207: COEFICIENTE | G207: PRECO UNITARIO | H207: CUSTO TOTAL
B208: COMPOSICAO | C208: 89883 | D208: CAMINHÃO BASCULANTE 18 M3, COM CAVALO MECÂNICO DE CAPACIDADE MÁXIMA DE TRAÇÃO COMBINADO DE 45000 KG, POTÊNCIA 330 CV, INCLUSIVE SEMIREBOQUE COM CAÇAMBA METÁLICA - CHP DIURNO. AF_12/2014 | E208: CHP | F208: 0,0046000 | G208: 273,08 | H208: =ROUNDDOWN(F208*G208,2) -> 1.25
B209: COMPOSICAO | C209: 89884 | D209: CAMINHÃO BASCULANTE 18 M3, COM CAVALO MECÂNICO DE CAPACIDADE MÁXIMA DE TRAÇÃO COMBINADO DE 45000 KG, POTÊNCIA 330 CV, INCLUSIVE SEMIREBOQUE COM CAÇAMBA METÁLICA - CHI DIURNO. AF_12/2014 | E209: CHI | F209: 0,0020000 | G209: 55,57 | H209: 0.11
H210: 0
B211: PRODUÇÃO DA EQUIPE | E211: 1 | F211: CUSTO | H211: =SUM(H208:H210) -> 1.36
B212: TOTAL | H212: =H211/E211 -> 1.36
B213: BDI % | H213: =1+$M$1 -> 1.2292
B214: TOTAL DO SERVIÇO - R$ | H214: =ROUND(H212*H213,2) -> 1.67
A216: 13.5 | B216: CODEVASF | E216: COMPOSIÇÃO DE PREÇO UNITÁRIO | I216: =H225 -> 1.49 | J216: =H227 -> 1.83
B217: OBRA: | C217: =$C$2 -> PAVIMENTAÇÃO ASFÁLTICA EM CBUQ - DIVERSAS RUAS (MONTES CLAROS / MG) | G217: DATA: | H217: =$H$2 -> OUTUBRO / 2.021
B218: SERVIÇO: | C218: =VLOOKUP(A216,ORÇAMENTO!$A$10:$I$28,3) -> TRANSPORTE COM CAMINHÃO CARROCERIA 9T, EM VIA URBANA PAVIMENTADA | E218: SINAPI | F218: =VLOOKUP(A216,ORÇAMENTO!$A$10:$I$28,4) -> 100947 | G218: UNIDADE: | H218: =VLOOKUP(A216,ORÇAMENTO!$A$10:$I$28,5) -> TXKM
B220: TIPO ITEM | C220: CODIGO ITEM | D220: DESCRIÇÃO ITEM | E220: UNIDADE ITEM | F220: COEFICIENTE | G220: PRECO UNITARIO | H220: CUSTO TOTAL
B221: COMPOSICAO | C221: 5824 | D221: CAMINHÃO TOCO, PBT 16.000 KG, CARGA ÚTIL MÁX. 10.685 KG, DIST. ENTRE EIXOS 4,8 M, POTÊNCIA 189 CV, INCLUSIVE CARROCERIA FIXA ABERTA DE MADEIRA P/ TRANSPORTE GERAL DE CARGA SECA, DIMEN. APROX. 2,5 X 7,00 X 0,50 M - CHP DIURNO. AF_06/2014 | E221: CHP | F221: 0,0093000 | G221: 147,24 | H221: =ROUNDDOWN(F221*G221,2) -> 1.36
B222: COMPOSICAO | C222: 5826 | D222: CAMINHÃO TOCO, PBT 16.000 KG, CARGA ÚTIL MÁX. 10.685 KG, DIST. ENTRE EIXOS 4,8 M, POTÊNCIA 189 CV, INCLUSIVE CARROCERIA FIXA ABERTA DE MADEIRA P/ TRANSPORTE GERAL DE CARGA SECA, DIMEN. APROX. 2,5 X 7,00 X 0,50 M - CHI DIURNO. AF_06/2014 | E222: CHI | F222: 0,0040000 | G222: 33,72 | H222: 0.13
H223: 0
B224: PRODUÇÃO DA EQUIPE | E224: 1 | F224: CUSTO | H224: =SUM(H221:H223) -> 1.49
B225: TOTAL | H225: =H224/E224 -> 1.49
B226: BDI % | H226: =1+$M$1 -> 1.2292
B227: TOTAL DO SERVIÇO - R$ | H227: =ROUND(H225*H226,2) -> 1.83
A229: 14 | B229: CODEVASF | E229: COMPOSIÇÃO DE PREÇO UNITÁRIO | I229: =H237 -> 0.42 | J229: =H239 -> 0.52
... 107 more rows

Sheet BDI SERV
B1: DETALHAMENTO DO BDI - SERVIÇOS
B4: Item | C4: Descrição dos Serviços | D4: % | E4: %
D5: PV | E5: CD
B7: 1 | C7: ADMINISTRAÇÃO CENTRAL | E7: 4.01
B8: 1.1 | C8: ESCRITÓRIO CENTRAL
B9: 1.2 | C9: VIAGENS
B10: 1.3 | C10: OUTROS
B12: 2 | C12: IMPOSTOS E TAXAS | D12: =SUM(D13:D16) -> 6.15 | E12: =SUM(E13:E16) -> 7.69
B13: 2.1 | C13: ISS (*) | D13: 2.5 | E13: =ROUND(D13*1.2515,2) -> 3.13
B14: 2.2 | C14: PIS | D14: 0.65 | E14: 0.81
B15: 2.3 | C15: Cofins | D15: 3 | E15: 3.75
B16: 2.4 | C16: CONTRIBUIÇÃO PREVIDENCIÁRIA SOBRE A RENDA BRUTA | D16: 0 | E16: 0
B18: 3 | C18: TAXA DE RISCO | E18: =SUM(E19:E22) -> 0.96
B19: 3.1 | C19: SEGURO | E19: 0.2
B20: 3.2 | C20: RISCO | E20: 0.56
B21: 3.3 | C21: GARANTIA | E21: 0.2
B23: 4 | C23: DESPESAS FINANCEIRAS | E23: 1.11
B25: 5 | C25: LUCRO | E25: 8.69
C27: BDI - CALCULADO | E27: =ROUND((((1+(E7+E18)/100)*(1+E23/100)*(1+E25/100)/(1-D12/100)-1)*100),2) -> 22.92
A29: BDI = ((1+((AC+S+R+G)/100))x(1+DF/100)x(1+L/100)/(1-I/100)-1)*100
B31: BDI (CALCULADO): | D31: =ROUND((((1+((E7+E18)/100))*(1+E23/100)*(1+E25/100))/(1-D12/100)-1)*100,2) -> 22.92 | E31: %
A33: (*) ISS CONFORME LEI COMPLEMENTAR Nº 04 / 2005 - Atualizado até a LC nº 64, de 27/12/2017 - Considerando as deduções previstas no Art. 62 - § 2º (Quant. Estimada de Material: 50%)
A37: BDI EM CONFORMIDADE COM OS ACÓRDÃOS Nº 2369/2011 e ACÓRDÃO Nº 2.622/2013 - TCU - PLENÁRIO

Sheet BDI FORN
B1: DETALHAMENTO DO BDI - FORNECIMENTO (MATERIAL ASFÁLTICO)
B4: Item | C4: Descrição dos Serviços | D4: % | E4: %
D5: PV | E5: CD
B7: 1 | C7: ADMINISTRAÇÃO CENTRAL | E7: 3.72
B8: 1.1 | C8: ESCRITÓRIO CENTRAL
B9: 1.2 | C9: VIAGENS
B10: 1.3 | C10: OUTROS
B12: 2 | C12: IMPOSTOS E TAXAS | D12: =SUM(D13:D16) -> 3.65 | E12: =SUM(E13:E16) -> 4.56
B13: 2.1 | C13: ISS (*) | E13: =ROUND(D13*1.2515,2) -> 0
B14: 2.2 | C14: PIS | D14: 0.65 | E14: 0.81
B15: 2.3 | C15: Cofins | D15: 3 | E15: 3.75
B16: 2.4 | C16: CONTRIBUIÇÃO PREVIDENCIÁRIA SOBRE A RENDA BRUTA | D16: 0 | E16: 0
B18: 3 | C18: TAXA DE RISCO | E18: =SUM(E19:E22) -> 0.82
B19: 3.1 | C19: SEGURO | E19: 0.16
B20: 3.2 | C20: RISCO | E20: 0.5
B21: 3.3 | C21: GARANTIA | E21: 0.16
B23: 4 | C23: DESPESAS FINANCEIRAS | E23: 0.94
B25: 5 | C25: LUCRO | E25: 5
C27: BDI - CALCULADO | E27: =ROUND((((1+(E7+E18)/100)*(1+E23/100)*(1+E25/100)/(1-D12/100)-1)*100),2) -> 15
A29: BDI = ((1+((AC+S+R+G)/100))x(1+DF/100)x(1+L/100)/(1-I/100)-1)*100
B31: BDI (CALCULADO): | D31: =ROUND((((1+((E7+E18)/100))*(1+E23/100)*(1+E25/100))/(1-D12/100)-1)*100,2) -> 15 | E31: %
A37: BDI EM CONFORMIDADE COM OS ACÓRDÃOS Nº 2369/2011 e ACÓRDÃO Nº 2.622/2013 - TCU - PLENÁRIO

Sheet CRONOGRAMA
B1: CRONOGRAMA FÍSICO-FINANCEIRO
B2: OBRA: | C2: =ORÇAMENTO!C5 -> PAVIMENTAÇÃO ASFÁLTICA EM CBUQ - DIVERSAS RUAS (MONTES CLAROS / MG) | F2: VALOR: | J2: =ORÇAMENTO!I37 -> 9688537.65
F3: PRAZO: | J3: 240 DIAS
B5: ITEM | C5: ETAPAS/DESCRIÇAO | D5: FISICO/ FINANCEIRO | E5: TOTAL ETAPAS | F5: MÊS 1 | G5: MÊS 2 | H5: MÊS 3 | I5: MÊS 4 | J5: MÊS 5 | K5: MÊS 6 | L5: MÊS 7 | M5: MÊS 8 | N5: TOTAL
A6: A | B6: =VLOOKUP(A6,ORÇAMENTO!$A$9:$I$37,2) -> 1 | C6: =VLOOKUP(A6,ORÇAMENTO!$A$9:$I$37,3) -> SERVIÇOS PRELIMINARES | D6: FISICO | E6: =ROUND(E7/$J$2,4) -> 0.0432 | F6: 0.25 | G6: 0.1 | H6: 0.1 | I6: 0.1 | J6: 0.1 | K6: 0.1 | L6: 0.1 | M6: 0.15 | N6: =SUM(F6:M6) -> 1
D7: FINANCEIRO | E7: =ORÇAMENTO!I9 -> 418618.29 | F7: =ROUND($E$7*F6,2) -> 104654.57 | G7: 41861.83 | H7: 41861.83 | I7: 41861.83 | J7: 41861.83 | K7: 41861.83 | L7: 41861.83 | M7: 62792.74 | N7: =SUM(F7:M7) -> 418618.29
A8: B | B8: =VLOOKUP(A8,ORÇAMENTO!$A$9:$I$37,2) -> 2 | C8: =VLOOKUP(A8,ORÇAMENTO!$A$9:$I$37,3) -> PAVIMENTAÇÃO | D8: FISICO | E8: =ROUND(E9/$J$2,4) -> 0.2468 | F8: 0.125 | G8: 0.125 | H8: 0.125 | I8: 0.125 | J8: 0.125 | K8: 0.125 | L8: 0.125 | M8: 0.125 | N8: =SUM(F8:M8) -> 1
D9: FINANCEIRO | E9: =ORÇAMENTO!I15 -> 2390754 | F9: =ROUND($E$9*F8,2) -> 298844.25 | G9: 298844.25 | H9: 298844.25 | I9: 298844.25 | J9: 298844.25 | K9: 298844.25 | L9: 298844.25 | M9: 298844.25 | N9: =SUM(F9:M9) -> 2390754
A10: C | B10: =VLOOKUP(A10,ORÇAMENTO!$A$9:$I$37,2) -> 3 | C10: =VLOOKUP(A10,ORÇAMENTO!$A$9:$I$37,3) -> TRANSPORTE DE MATERIAIS | D10: FISICO | E10: =ROUND(E11/$J$2,4) -> 0.0706 | F10: 0.125 | G10: 0.125 | H10: 0.125 | I10: 0.125 | J10: 0.125 | K10: 0.125 | L10: 0.125 | M10: 0.125 | N10: =SUM(F10:M10) -> 1
D11: FINANCEIRO | E11: =ORÇAMENTO!I23 -> 683827 | F11: =ROUND($E$11*F10,2) -> 85478.38 | G11: 85478.38 | H11: 85478.38 | I11: 85478.38 | J11: 85478.38 | K11: 85478.38 | L11: 85478.38 | M11: 85478.38 | N11: =SUM(F11:M11)-0.04 -> 683827
A12: D | B12: =VLOOKUP(A12,ORÇAMENTO!$A$9:$I$37,2) -> 4 | C12: =VLOOKUP(A12,ORÇAMENTO!$A$9:$I$37,3) -> OBRAS COMPLEMENTARES | D12: FISICO | E12: =ROUND(E13/$J$2,4) -> 0.214 | F12: 0.125 | G12: 0.125 | H12: 0.125 | I12: 0.125 | J12: 0.125 | K12: 0.125 | L12: 0.125 | M12: 0.125 | N12: =SUM(F12:M12) -> 1
D13: FINANCEIRO | E13: =ORÇAMENTO!I27 -> 2073639.18 | F13: =ROUND($E$13*F12,2) -> 259204.9 | G13: 259204.9 | H13: 259204.9 | I13: 259204.9 | J13: 259204.9 | K13: 259204.9 | L13: 259204.9 | M13: 259204.9 | N13: =SUM(F13:M13)-0.02 -> 2073639.18
A14: E | B14: =VLOOKUP(A14,ORÇAMENTO!$A$9:$I$37,2) -> 5 | C14: =VLOOKUP(A14,ORÇAMENTO!$A$9:$I$37,3) -> FORNECIMENTOS - MATERIAL ASFÁLTICO (BDI DIFERENCIADO) | D14: FISICO | E14: =ROUND(E15/$J$2,4) -> 0.4254 | F14: 0.125 | G14: 0.125 | H14: 0.125 | I14: 0.125 | J14: 0.125 | K14: 0.125 | L14: 0.125 | M14: 0.125 | N14: 1
D15: FINANCEIRO | E15: =ORÇAMENTO!I33 -> 4121699.18 | F15: =ROUND($E$15*F14,2) -> 515212.4 | G15: =ROUND($E$15*G14,2) -> 515212.4 | H15: 515212.4 | I15: 515212.4 | J15: 515212.4 | K15: 515212.4 | L15: 515212.4 | M15: 515212.4 | N15: =SUM(F15:M15)-0.02 -> 4121699.18
B16: TOTAL | D16: FISICO | E16: =SUM(F16:M16) -> 1.000000008 | F16: =F17/$E$17 -> 0.1304009486 | G16: =G17/$E$17 -> 0.1239198116 | H16: 0.1239198116 | I16: 0.1239198116 | J16: 0.1239198116 | K16: 0.1239198116 | L16: 0.1239198116 | M16: 0.1260801902 | N16: 1.000000008
D17: FINANCEIRO | E17: =E11+E9+E7+E13+E15 -> 9688537.65 | F17: =F11+F9+F7+F13+F15 -> 1263394.5 | G17: =G11+G9+G7+G13+G15 -> 1200601.76 | H17: 1200601.76 | I17: 1200601.76 | J17: 1200601.76 | K17: 1200601.76 | L17: 1200601.76 | M17: 1221532.67 | N17: =SUM(F17:M17)-0.08 -> 9688537.65
B19: OBSERVAÇÕES:
